bitfinex/quotes_ETHUSD_20240817
["timestamp","ask_amount","ask_price","bid_price","bid_amount"]
[1723855603712,2.4976,2601.6,2601.2,3.75900852]
[1723855605324,7.46,2602.3,2601.2,3.75900852]
[1723855605521,2.4976,2602.3,2601.7,3.84363]
[1723855605703,0.04163533,2602.2,2601.8,3.0]
[1723855605906,0.04163533,2602.2,2601.9,0.684363]
[1723855606213,2.4976,2602.3,2601.9,0.684363]
[1723855606417,0.7,2602.4,2601.8,6.84347]
[1723855606418,6.4916,2602.5,2601.8,10.68683]
[1723855606617,6.4916,2602.5,2601.9,1.068683]
[1723855607051,2.4976,2602.5,2601.9,1.068683]
[1723855607365,2.4976,2602.8,2602.2,3.84278]
[1723855607514,2.4976,2602.8,2602.3,3.0]
[1723855608760,6.81136,2602.8,2602.3,3.0]
[1723855608963,0.16894369,2602.7,2602.1,3.0]
[1723855609250,0.04189845,2602.7,2602.1,3.0]
[1723855609626,0.04189845,2602.7,2602.1,3.684312]
[1723855611464,0.04189845,2602.7,2602.3,3.84273]
[1723855611616,2.4976,2602.8,2602.4,3.0]
[1723855611823,0.04181434,2602.6,2602.4,3.0]
[1723855612044,2.4976,2602.8,2602.2,3.0]
[1723855612222,0.04173022,2602.5,2602.2,7.9151042]
[1723855612424,2.4976,2602.8,2602.2,7.9151042]
[1723855612618,0.04164609,2602.4,2602.2,4.0722142]
[1723855612850,6.4916,2602.8,2602.2,3.0]
[1723855613119,0.04156196,2602.3,2602.1,3.0]
[1723855613343,7.21076,2602.8,2602.0,3.0]
[1723855613548,0.04152709,2602.2,2602.0,3.684322]
[1723855613743,2.3322,2602.4,2602.0,6.84319]
[1723855613935,2.3322,2602.4,2602.0,3.0]
[1723855614145,0.04165391,2602.3,2602.0,3.684322]
[1723855614523,0.04165391,2602.3,2602.0,3.0]
[1723855614729,0.04165391,2602.3,2601.9,3.0]
[1723855615464,0.04165391,2602.3,2601.9,3.84331]
[1723855615762,0.04165391,2602.3,2602.0,3.0]
[1723855617084,0.04165391,2602.3,2602.0,6.84318]
[1723855617361,0.04165391,2602.3,2602.0,7.911831]
[1723855617933,0.04165391,2602.3,2602.0,4.068651]
[1723855618135,0.04165391,2602.3,2602.1,3.0]
[1723855618338,0.04165391,2602.3,2601.9,3.0]
[1723855618735,0.04165391,2602.3,2601.8,3.0]
[1723855618935,0.04165391,2602.3,2601.8,4.116354]
[1723855619168,0.04165391,2602.3,2601.8,7.959764]
[1723855620332,0.04165391,2602.3,2601.8,4.116354]
[1723855620638,2.3322,2602.2,2601.8,3.0]
[1723855620836,2.37375555,2602.2,2601.8,3.0]
[1723855621279,2.37375555,2602.2,2601.9,3.84326]
[1723855621589,2.37375555,2602.2,2602.0,3.0]
[1723855621590,0.04155555,2602.2,2602.0,3.0]
[1723855621749,0.04155555,2602.2,2602.1,0.684326]
[1723855621947,2.3322,2602.4,2602.1,0.684326]
[1723855622145,0.04155555,2602.2,2602.1,0.684326]
[1723855622644,2.3322,2602.4,2602.1,0.684326]
[1723855622889,0.04155555,2602.2,2602.1,0.684326]
[1723855623049,2.3322,2602.4,2602.1,0.684326]
[1723855623256,2.3322,2602.7,2602.4,3.84259]
[1723855623561,2.3322,2602.9,2602.5,3.0]
[1723855625047,0.04205164,2602.8,2602.5,3.0]
[1723855627644,0.04205164,2602.8,2602.6,3.8423]
[1723855627849,2.3322,2603.2,2602.6,3.8423]
[1723855627850,2.3322,2603.2,2602.7,3.0]
[1723855628169,0.12702503,2603.1,2602.7,3.0]
[1723855628376,2.3322,2603.2,2602.7,3.0]
[1723855628563,2.3322,2603.2,2602.8,0.68423]
[1723855628781,0.04230392,2603.1,2602.7,3.0]
[1723855630264,0.04230392,2603.1,2602.6,3.0]
[1723855632293,0.12702369,2603.0,2602.6,3.0]
[1723855632490,0.04221984,2603.0,2602.7,0.74161257]
[1723855632732,6.3262,2603.2,2602.7,0.74161257]
[1723855632936,0.04213574,2602.9,2602.7,0.74161257]
[1723855633132,6.3262,2603.2,2602.7,0.74161257]
[1723855633339,0.1270254,2603.1,2602.8,0.37416126]
[1723855633508,0.1270254,2603.0,2602.8,0.37416126]
[1723855633703,6.3262,2603.2,2602.8,0.37416126]
[1723855633910,0.12702356,2603.1,2602.8,0.37416126]
[1723855634136,0.12702356,2603.0,2602.8,0.37416126]
[1723855634427,6.3262,2603.2,2602.8,0.37416126]
[1723855634428,0.12702356,2602.9,2602.8,0.37416126]
[1723855634637,0.12701786,2602.9,2602.8,0.37416126]
[1723855634849,0.1270241,2602.9,2602.8,0.37416126]
[1723855636237,0.16930321,2602.9,2602.8,0.37416126]
[1723855636402,0.16930321,2602.9,2602.5,3.0]
[1723855636403,2.60580321,2602.9,2602.5,3.0]
[1723855636602,0.1270241,2602.8,2602.4,3.0]
[1723855636802,0.1270241,2602.8,2602.4,4.13513047]
[1723855636803,0.04198887,2602.7,2602.4,4.13513047]
[1723855637022,2.4365,2602.9,2602.4,4.13513047]
[1723855637222,0.04190476,2602.6,2602.4,4.13513047]
[1723855637540,0.7,2603.3,2602.6,3.84223]
[1723855637746,0.7,2603.3,2602.7,3.0]
[1723855637747,0.12701307,2603.2,2602.7,3.0]
[1723855638031,2.56351307,2603.1,2602.4,6.84251]
[1723855638234,2.47726603,2603.1,2602.4,6.84251]
[1723855638540,0.12701683,2603.0,2602.5,3.84236]
[1723855638750,2.47726603,2603.1,2602.6,10.162987]
[1723855638900,0.04059785,2602.9,2602.6,7.162987]
[1723855639241,0.04051375,2602.8,2602.7,3.7162987]
[1723855639537,7.1305,2603.3,2602.7,3.7162987]
[1723855639740,0.04051375,2602.8,2602.7,3.0]
[1723855639906,3.1365,2603.3,2602.7,3.07683607]
[1723855640106,0.12700713,2603.2,2602.8,0.91712561]
[1723855640432,0.7,2603.7,2603.1,3.8415]
[1723855640742,0.12699686,2603.6,2603.2,3.0]
[1723855640972,0.12699686,2603.5,2603.1,3.0]
[1723855641135,0.12699686,2603.4,2603.1,3.0]
[1723855641305,0.7,2603.7,2603.1,3.0]
[1723855641511,0.12699709,2603.6,2603.1,3.0]
[1723855641857,0.12699709,2603.5,2603.1,3.909382]
[1723855642048,0.12699709,2603.4,2603.1,3.0]
[1723855642217,0.7,2603.7,2603.1,3.0]
[1723855642545,0.12699802,2603.6,2603.1,3.909382]
[1723855642729,0.12699802,2603.5,2603.1,7.750942]
[1723855643050,0.7,2603.7,2603.2,1.10138531]
[1723855643236,0.041158,2603.4,2603.2,1.10138531]
[1723855643555,0.7,2603.7,2603.2,1.10138531]
[1723855643755,0.04107394,2603.3,2603.2,1.10138531]
[1723855644045,0.04125914,2603.3,2603.2,5.01948672]
[1723855644246,2.4365,2603.8,2603.4,3.84105]
[1723855644609,2.4365,2603.8,2603.5,3.0]
[1723855645407,2.4365,2604.1,2603.6,3.91761354]
[1723855645745,2.4365,2604.1,2603.7,7.53244135]
[1723855645947,2.4365,2604.1,2603.7,6.84068]
[1723855646361,3.69414485,2604.2,2603.9,2.2522]
[1723855646647,3.69414485,2604.2,2604.0,3.84015]
[1723855646855,3.69414485,2604.2,2604.1,6.84009]
[1723855647057,3.69414485,2604.2,2604.1,10.68018]
[1723855647692,3.69414485,2604.2,2604.1,3.0]
[1723855647849,3.69414485,2604.2,2604.0,4.293282]
[1723855648025,3.69414485,2604.2,2604.0,3.0]
[1723855648226,3.69414485,2604.2,2604.0,6.84023]
[1723855648924,3.69414485,2604.2,2604.1,3.84009]
[1723855649253,3.69414485,2604.2,2604.1,6.84009]
[1723855649465,3.69414485,2604.2,2604.1,7.749319]
[1723855649956,3.69414485,2604.2,2604.1,3.909229]
[1723855650126,3.69414485,2604.2,2603.9,6.09248]
[1723855650127,3.69414485,2604.2,2604.0,3.0]
[1723855651159,3.69414485,2604.2,2603.7,3.84056]
[1723855651367,3.69414485,2604.2,2603.8,3.384056]
[1723855651558,3.69414485,2604.2,2603.9,3.84036]
[1723855651759,3.69414485,2604.2,2604.0,3.0]
[1723855652246,3.69414485,2604.2,2603.9,3.0]
[1723855652734,2.3897,2604.1,2603.3,6.17277]
[1723855652941,2.3897,2604.1,2603.3,6.790047]
[1723855653128,2.3897,2604.1,2603.5,3.8409]
[1723855653459,2.3897,2604.1,2603.3,6.790057]
[1723855653660,2.3897,2604.1,2603.4,3.84112]
[1723855653876,2.3897,2604.1,2603.5,1.0631177]
[1723855654028,2.3897,2604.1,2603.4,3.0]
[1723855654230,7.68814485,2604.2,2603.1,6.17315]
[1723855654231,2.3897,2603.9,2603.1,11.16155]
[1723855654456,2.3897,2603.9,2603.1,5.341806]
[1723855654626,2.3897,2603.9,2603.1,3.84147]
[1723855655025,2.3897,2603.9,2602.9,3.84179]
[1723855655374,2.42972253,2603.8,2602.9,3.84179]
[1723855655673,2.42972253,2603.8,2603.0,3.0]
[1723855656160,2.3897,2603.6,2602.8,7.32]
[1723855656370,2.3897,2603.5,2602.5,6.17399]
[1723855656582,3.13660937,2603.5,2602.6,0.617399]
[1723855656875,0.7,2603.4,2602.6,0.617399]
[1723855657098,0.7387767,2603.4,2602.6,0.617399]
[1723855657574,0.7387767,2603.4,2602.3,11.16273]
[1723855657575,6.3837,2603.3,2602.3,11.16273]
[1723855657780,2.3897,2603.2,2602.2,3.84279]
[1723855657939,2.3897,2603.2,2602.1,3.84295]
[1723855657940,2.42829136,2603.2,2602.3,4.611324]
[1723855658142,2.42829136,2603.2,2602.4,3.8425]
[1723855658338,2.42829136,2603.2,2602.5,3.84239]
[1723855658582,2.42829136,2603.2,2602.6,0.384239]
[1723855658877,0.03838522,2603.1,2602.6,0.384239]
[1723855659279,0.03838522,2603.1,2602.7,3.84205]
[1723855659582,2.3897,2603.2,2602.8,3.0]
[1723855660468,2.3897,2603.2,2602.6,7.226529]
[1723855660644,2.3897,2603.2,2602.7,0.8069099]
[1723855662279,0.7,2603.1,2602.6,3.0]
[1723855662481,0.73837761,2603.1,2602.3,6.84274]
[1723855662647,0.73837761,2603.1,2602.4,1.068558]
[1723855663058,2.3897,2603.0,2602.3,3.0]
[1723855663261,2.42798847,2603.0,2602.3,3.0]
[1723855663476,2.42798847,2603.0,2602.3,6.84272]
[1723855663673,2.42798847,2603.0,2602.5,3.84242]
[1723855663872,2.42798847,2603.0,2602.6,3.384242]
[1723855664075,2.42798847,2603.0,2602.7,3.84206]
[1723855664281,0.03828847,2603.0,2602.8,3.0]
[1723855664475,2.3897,2603.3,2602.8,3.0]
[1723855665350,2.3897,2603.3,2602.8,3.7226302]
[1723855665652,2.3897,2603.3,2602.8,7.5645902]
[1723855665848,0.03849412,2603.2,2602.8,7.5645902]
[1723855666054,2.3897,2603.3,2602.8,7.5645902]
[1723855666281,0.03836937,2603.1,2602.8,7.5645902]
[1723855666463,2.3897,2603.3,2602.9,0.90389511]
[1723855666663,0.03829292,2603.0,2602.9,0.90389511]
[1723855667076,2.3897,2603.3,2602.9,0.90389511]
[1723855667392,0.03829242,2603.0,2602.9,0.90389511]
[1723855667696,2.3897,2603.3,2602.9,0.90389511]
[1723855667891,0.03829242,2603.0,2602.8,3.0]
[1723855668105,2.3897,2603.3,2602.8,3.0]
[1723855668385,0.03820683,2602.9,2602.8,3.0]
[1723855668584,2.3897,2603.3,2602.8,3.0]
[1723855668771,2.3897,2603.3,2602.9,0.684205]
[1723855668978,0.03845901,2603.2,2602.9,0.684205]
[1723855669515,0.03777993,2603.1,2602.9,0.684205]
[1723855669655,2.3897,2603.3,2602.9,0.684205]
[1723855669856,2.3897,2603.3,2603.0,0.7526195]
[1723855671558,2.3897,2603.3,2602.8,3.0]
[1723855671799,2.3897,2603.3,2602.7,3.0]
[1723855672890,2.3897,2603.3,2602.7,6.84202]
[1723855673105,0.03816797,2603.2,2602.8,4.910353]
[1723855673305,2.3897,2603.3,2602.9,3.0]
[1723855673461,0.03808137,2603.1,2602.9,3.0]
[1723855673661,2.3897,2603.3,2602.9,3.0]
[1723855673888,0.03799729,2603.0,2602.9,3.7910353]
[1723855674095,2.3897,2603.3,2602.9,3.7910353]
[1723855674406,0.03799729,2603.0,2602.9,3.7910353]
[1723855674565,2.3897,2603.3,2602.9,3.7910353]
[1723855674758,2.3897,2603.3,2602.9,3.0]
[1723855674759,0.03799729,2603.0,2602.9,3.0]
[1723855674992,2.3897,2603.3,2602.7,3.0]
[1723855675208,0.03799729,2603.0,2602.8,1.068441]
[1723855675394,2.3897,2603.3,2602.8,1.068441]
[1723855675812,0.03816543,2603.2,2602.8,1.068441]
[1723855676113,2.3897,2603.3,2602.8,1.068441]
[1723855676302,0.03786419,2603.1,2602.7,3.0]
[1723855676624,2.3897,2603.3,2602.9,3.84175]
[1723855676761,2.3897,2603.3,2603.0,3.0]
[1723855676967,0.03772711,2603.2,2603.0,3.0]
[1723855677309,2.3897,2603.3,2603.0,3.0]
[1723855677602,0.03764303,2603.1,2603.0,3.0]
[1723855677790,2.3897,2603.3,2603.0,3.714175]
[1723855678162,2.4976,2603.7,2603.1,3.84148]
[1723855678383,0.12699312,2603.6,2603.2,3.7632486]
[1723855678579,2.4976,2603.7,2603.2,3.7632486]
[1723855678789,0.12699494,2603.6,2603.2,3.7632486]
[1723855679072,2.4976,2603.7,2603.3,3.0]
[1723855679305,0.12699581,2603.6,2603.0,7.555875]
[1723855679601,0.12699581,2603.5,2603.1,1.1397655]
[1723855679801,0.12699581,2603.4,2603.1,1.1397655]
[1723855680107,0.12699581,2603.4,2603.0,6.8417]
[1723855680108,2.4976,2603.7,2603.2,0.79814655]
[1723855680310,0.03781675,2603.3,2603.2,0.79814655]
[1723855680504,2.4976,2603.7,2603.2,0.79814655]
[1723855680801,0.03776356,2603.3,2603.2,3.79814655]
[1723855681012,2.4976,2603.7,2603.0,3.0]
[1723855681167,2.4976,2603.5,2603.0,3.0]
[1723855681368,0.12699297,2603.4,2603.1,0.684174]
[1723855681582,0.16475896,2603.4,2603.1,0.684174]
[1723855681783,0.12699297,2603.3,2603.1,0.684174]
[1723855682081,0.03759784,2603.2,2603.1,0.684174]
[1723855682395,2.4976,2603.5,2603.1,0.684174]
[1723855682606,0.03759784,2603.2,2603.1,0.684174]
[1723855682784,2.4976,2603.5,2603.1,0.684174]
[1723855682979,0.03759784,2603.2,2603.1,0.684174]
[1723855683481,2.4976,2603.5,2603.1,0.684174]
[1723855683681,0.25398455,2603.4,2603.2,0.3684174]
[1723855683886,0.16502898,2603.4,2603.2,3.3684174]
[1723855684081,0.16502898,2603.4,2603.3,0.78941514]
[1723855685417,0.16502898,2603.4,2603.2,0.3684174]
[1723855686118,0.16502898,2603.4,2603.0,6.8417]
[1723855687121,0.03803672,2603.4,2603.0,6.8417]
[1723855687322,2.4976,2603.7,2603.0,6.8417]
[1723855687477,0.03776749,2603.3,2603.0,6.8417]
[1723855687681,2.4976,2603.7,2603.1,1.068343]
[1723855687882,0.03768342,2603.2,2603.1,1.068343]
[1723855688131,3.994,2603.9,2603.1,1.068343]
[1723855688132,2.4976,2604.0,2603.2,2.3307]
[1723855688327,2.4044991,2604.4,2603.9,3.84027]
[1723855688479,2.4044991,2604.4,2604.0,4.224167]
[1723855688480,0.12695423,2604.3,2604.0,4.224167]
[1723855688805,2.4044991,2604.4,2604.0,3.384027]
[1723855689116,2.4044991,2604.4,2604.0,3.0]
[1723855691321,2.2784,2604.3,2604.0,3.0]
[1723855691533,2.2784,2604.3,2603.7,3.0]
[1723855691827,0.8260991,2604.4,2603.6,7.32]
[1723855691828,2.2784,2604.0,2603.6,7.32]
[1723855692026,2.2784,2604.0,2603.4,3.84109]
[1723855692322,2.2784,2604.0,2603.4,4.68842443]
[1723855692522,2.2784,2604.0,2603.5,3.84088]
[1723855693184,2.2784,2604.0,2603.6,3.0]
[1723855693627,2.2784,2604.0,2603.4,3.0]
[1723855693783,0.29784,2603.9,2603.3,6.84113]
[1723855693983,2.2784,2604.0,2603.4,3.84104]
[1723855694197,2.2784,2604.0,2603.5,3.0]
[1723855694385,2.97564,2604.0,2603.5,3.0]
[1723855694932,0.69724,2604.0,2603.5,3.0]
[1723855695219,0.69724,2604.0,2603.2,3.84133]
[1723855695220,2.4053824,2603.9,2603.3,3.0]
[1723855695422,0.7,2603.8,2603.3,3.0]
[1723855695583,0.7,2603.8,2603.2,3.0]
[1723855695783,2.2784,2603.7,2603.2,3.0]
[1723855698000,2.2784,2603.7,2603.2,6.8414]
[1723855698204,2.2784,2603.7,2603.4,3.8411]
[1723855698414,2.2784,2604.0,2603.5,3.0]
[1723855698733,0.12697686,2603.9,2603.5,3.0]
[1723855698932,2.2784,2604.0,2603.5,3.0]
[1723855699093,2.2784,2604.0,2603.5,7.525054]
[1723855699832,2.2784,2604.0,2603.5,3.684104]
[1723855700038,2.2784,2604.0,2603.5,3.0]
[1723855702003,2.2784,2604.0,2603.5,6.84095]
[1723855702205,2.2784,2604.0,2603.6,3.84078]
[1723855702548,2.2784,2604.0,2603.7,3.0]
[1723855702850,2.2784,2603.8,2603.3,3.0]
[1723855702996,2.2784,2603.8,2603.2,3.0]
[1723855703199,2.2784,2603.8,2603.1,7.32]
[1723855703200,2.9784,2603.8,2603.1,7.32]
[1723855703542,1.21088516,2604.3,2603.1,7.32]
[1723855703543,2.2784,2603.4,2603.1,7.32]
[1723855704644,2.2784,2603.4,2603.2,3.0]
[1723855705805,0.12701214,2603.3,2603.2,3.0]
[1723855706004,0.12701214,2603.3,2602.6,3.0]
[1723855706216,2.2784,2603.4,2602.6,3.0]
[1723855706217,2.2784,2603.4,2602.7,3.84207]
[1723855706427,2.2784,2603.4,2602.8,3.0]
[1723855707146,0.1270102,2603.3,2602.8,3.0]
[1723855707304,2.2784,2603.4,2602.8,3.0]
[1723855707505,0.12701258,2603.3,2602.8,3.0]
[1723855707814,2.97564,2603.4,2602.6,3.0]
[1723855708029,0.12701373,2603.3,2602.6,3.0]
[1723855708229,2.97564,2603.4,2602.6,3.0]
[1723855708433,0.12701451,2603.3,2602.6,6.84229]
[1723855708745,2.2784,2603.4,2602.7,3.84213]
[1723855708929,2.2784,2603.4,2602.9,3.84186]
[1723855709133,2.2784,2603.4,2603.0,3.0]
[1723855711116,2.2784,2603.4,2603.0,6.84164]
[1723855711317,2.3147,2603.7,2603.1,3.84155]
[1723855711531,2.3147,2604.0,2603.6,3.84083]
[1723855711854,2.3147,2604.3,2603.8,3.84052]
[1723855712161,2.3147,2604.3,2603.9,3.384052]
[1723855712162,0.12695516,2604.2,2603.9,3.384052]
[1723855712449,2.3147,2604.3,2603.9,3.0]
[1723855712785,0.1269624,2604.2,2603.8,3.0]
[1723855712959,2.3147,2604.3,2603.8,3.0]
[1723855713260,2.3147,2604.3,2603.6,7.68154]
[1723855713261,2.3147,2604.3,2603.7,3.0]
[1723855713423,2.3147,2604.3,2603.7,3.768154]
[1723855713623,0.12696232,2604.2,2603.7,3.768154]
[1723855713949,2.3147,2604.3,2603.7,3.768154]
[1723855714507,0.12696329,2604.2,2603.7,3.768154]
[1723855714757,2.3147,2604.3,2603.8,0.5507758]
[1723855715129,0.7,2604.1,2603.7,3.0]
[1723855715324,2.3147,2603.9,2603.4,3.0]
[1723855715526,2.3147,2603.9,2603.4,4.3189298]
[1723855716472,0.12698337,2603.8,2603.1,3.84154]
[1723855716752,2.3147,2603.9,2603.2,3.84127]
[1723855716966,0.12698444,2603.8,2603.1,1.116164]
[1723855717132,2.3147,2603.9,2603.1,1.116164]
[1723855717451,0.12698612,2603.8,2603.2,0.4957774]
[1723855717624,2.3147,2603.9,2603.2,3.4957774]
[1723855717830,2.3147,2603.9,2603.3,3.84126]
[1723855717831,0.12698633,2603.8,2603.3,3.84126]
[1723855718030,2.3147,2603.9,2603.4,3.0]
[1723855720292,0.1269795,2603.8,2603.4,3.0]
[1723855720477,2.3147,2603.9,2603.4,3.0]
[1723855720675,0.1269807,2603.8,2603.4,3.77358633]
[1723855720879,2.3147,2603.9,2603.4,3.77358633]
[1723855721067,0.1269799,2603.8,2603.4,3.77358633]
[1723855721266,2.3147,2603.9,2603.4,3.77358633]
[1723855721480,0.12697997,2603.8,2603.4,3.77358633]
[1723855721654,2.3147,2603.9,2603.4,3.77358633]
[1723855721852,0.12698301,2603.8,2603.3,3.84126]
[1723855722092,2.3147,2603.9,2603.4,3.0]
[1723855722284,0.12698188,2603.8,2603.4,3.0]
[1723855722488,2.3147,2603.9,2603.2,3.0]
[1723855722652,0.12698192,2603.8,2603.2,7.62893634]
[1723855722990,2.3147,2603.9,2603.2,7.62893634]
[1723855723177,0.12698453,2603.8,2603.2,7.62893634]
[1723855723386,2.3147,2603.9,2603.3,1.14703963]
[1723855723601,0.1269825,2603.8,2603.3,1.14703963]
[1723855723772,2.3147,2603.9,2603.3,1.14703963]
[1723855724091,0.12698202,2603.8,2603.3,4.98822963]
[1723855724293,2.3147,2603.9,2603.4,3.86372768]
[1723855724790,0.12698054,2603.8,2603.4,3.86372768]
[1723855725002,2.3147,2603.9,2603.4,3.86372768]
[1723855725205,0.12697795,2603.8,2603.4,3.86372768]
[1723855725353,2.3147,2603.9,2603.5,0.77049177]
[1723855725786,0.12697833,2603.8,2603.5,0.77049177]
[1723855726096,2.3147,2603.9,2603.5,0.77049177]
[1723855726299,0.12697912,2603.8,2603.4,3.0]
[1723855726496,2.3147,2603.9,2603.4,3.0]
[1723855726710,0.12697958,2603.8,2603.4,3.0]
[1723855726874,2.3147,2603.9,2603.4,3.684119]
[1723855727073,0.12697971,2603.8,2603.4,3.684119]
[1723855727383,2.3147,2603.9,2603.4,3.684119]
[1723855727786,0.12698109,2603.8,2603.4,3.684119]
[1723855727969,2.3147,2603.9,2603.5,1.1366499]
[1723855728370,0.12698138,2603.8,2603.5,1.1366499]
[1723855728571,2.3147,2603.9,2603.5,1.1366499]
[1723855728907,2.3147,2603.9,2603.4,3.0]
[1723855729217,0.12697774,2603.8,2603.4,3.0]
[1723855729382,2.3147,2603.9,2603.4,3.0]
[1723855729992,0.12697835,2603.8,2603.4,3.0]
[1723855730217,2.3147,2603.9,2603.4,3.0]
[1723855730368,0.12698151,2603.8,2603.4,3.0]
[1723855730573,2.3147,2603.9,2603.4,3.684119]
[1723855730774,0.12698148,2603.8,2603.4,3.684119]
[1723855731010,2.3147,2603.9,2603.4,3.0]
[1723855731215,2.3063,2603.7,2603.0,5.00463569]
[1723855731510,0.37031129,2603.6,2603.0,3.0]
[1723855731713,3.13329039,2603.5,2602.9,7.32]
[1723855731920,0.12699834,2603.4,2602.9,7.32]
[1723855732075,3.0063,2603.5,2602.9,7.32]
[1723855732272,0.1270047,2603.4,2602.9,7.32]
[1723855732503,3.0063,2603.5,2602.9,7.32]
[1723855732698,0.12700397,2603.4,2602.9,7.32]
[1723855733002,3.30693,2603.5,2602.9,7.32]
[1723855733207,0.12700369,2603.4,2602.9,7.32]
[1723855733384,3.0063,2603.5,2603.0,3.0]
[1723855733574,0.12700381,2603.4,2603.0,3.0]
[1723855733771,3.0063,2603.5,2603.0,3.0]
[1723855733972,0.12700481,2603.4,2603.0,3.0]
[1723855734215,3.30693,2603.5,2603.0,3.0]
[1723855734400,0.12700341,2603.4,2603.0,3.0]
[1723855734719,3.30693,2603.5,2603.0,3.0]
[1723855734875,0.12700477,2603.4,2603.0,3.0]
[1723855735075,3.30693,2603.5,2603.0,3.0]
[1723855735384,2.3063,2603.3,2603.0,3.0]
[1723855737011,2.3063,2603.3,2602.6,6.8423]
[1723855737187,2.3063,2603.3,2602.7,1.33663061]
[1723855737513,2.3063,2603.3,2602.7,1.33663095]
[1723855739000,2.3063,2603.3,2602.7,1.33661107]
[1723855740415,2.3063,2603.3,2602.7,5.17876107]
[1723855740584,2.3063,2603.3,2602.6,5.00491661]
[1723855740585,2.3063,2603.3,2602.8,3.0]
[1723855740793,0.12701282,2603.2,2602.5,4.31541661]
[1723855741121,5.45527354,2603.7,2603.2,3.84131]
[1723855741122,2.3063,2603.7,2603.2,3.84131]
[1723855741418,2.3063,2603.7,2603.3,0.46095211]
[1723855741579,2.3063,2604.0,2603.5,3.84089]
[1723855741774,2.3063,2604.0,2603.3,0.07682111]
[1723855741775,0.12698037,2603.9,2603.3,0.07682111]
[1723855741980,9.7663,2604.3,2603.7,3.8406]
[1723855742176,0.12696269,2604.2,2603.8,6.84046]
[1723855742382,2.3063,2604.3,2603.8,3.0]
[1723855744706,0.8269613,2604.2,2603.6,3.0]
[1723855744906,0.8269613,2604.2,2603.6,6.84081]
[1723855744907,0.7,2604.2,2603.6,6.84081]
[1723855745187,0.7,2604.2,2603.6,10.68155]
[1723855745430,0.7,2604.2,2603.6,11.84195023]
[1723855745776,0.7,2604.2,2603.6,8.00121023]
[1723855746530,0.1260991,2604.4,2603.7,2.3105]
[1723855746689,0.1260991,2604.4,2603.7,5.3105]
[1723855747015,0.1260991,2604.4,2603.8,4.37142678]
[1723855747314,0.1260991,2604.4,2603.9,3.0]
[1723855747315,2.43325795,2604.3,2603.9,3.0]
[1723855747613,2.3063,2604.3,2603.7,3.0]
[1723855748327,2.3063,2604.3,2603.8,4.524604]
[1723855748528,0.8260991,2604.4,2603.9,3.0]
[1723855749095,0.8260991,2604.4,2604.0,3.84023]
[1723855749304,0.8260991,2604.4,2604.1,3.0]
[1723855750828,0.8260991,2604.4,2603.9,3.0]
[1723855751033,0.8260991,2604.4,2603.9,3.629311]
[1723855751699,0.8260991,2604.4,2603.9,3.0]
[1723855751902,2.55466501,2604.3,2603.9,3.0]
[1723855752208,2.4277,2604.3,2603.8,3.84051]
[1723855752413,2.4277,2604.3,2603.9,3.0]
[1723855754232,2.4277,2604.3,2603.7,3.0]
[1723855755525,0.8260991,2604.4,2603.7,3.0]
[1723855755526,4.12096917,2604.2,2603.7,3.0]
[1723855755729,2.96676609,2604.1,2603.7,3.0]
[1723855755933,2.83979692,2604.1,2603.7,3.0]
[1723855756495,3.53979692,2604.1,2603.7,3.0]
[1723855756709,2.55467902,2604.0,2603.7,3.0]
[1723855757034,2.4277,2604.0,2603.7,3.0]
[1723855757345,1.11209692,2604.1,2603.7,3.0]
[1723855757346,2.4277,2603.8,2603.7,3.0]
[1723855757549,2.4277,2603.8,2603.0,3.84163]
[1723855757869,2.4277,2603.8,2603.4,3.84108]
[1723855758152,2.4277,2603.8,2603.2,3.84131]
[1723855759450,2.4277,2603.8,2603.3,3.0]
[1723855759948,1.11209692,2604.1,2603.4,2.4527]
[1723855759949,3.53979692,2604.1,2603.4,2.4527]
[1723855760135,0.87446821,2604.0,2603.4,2.4527]
[1723855760760,0.87446821,2604.0,2603.3,3.0]
[1723855763180,0.1269827,2603.9,2603.3,3.0]
[1723855763493,0.87446821,2604.0,2603.3,3.0]
[1723855764007,2.86912651,2603.9,2603.3,3.0]
[1723855764233,2.86912651,2603.9,2603.2,6.84142]
[1723855764361,2.4277,2603.9,2603.2,6.84142]
[1723855764566,2.4277,2603.9,2603.2,10.68274]
[1723855764791,2.4277,2603.9,2603.2,6.84132]
[1723855766210,2.4277,2603.9,2603.4,3.84105]
[1723855766408,2.4277,2603.9,2603.5,3.0]
[1723855769928,3.65878426,2604.4,2603.6,2.2868]
[1723855770063,0.1260991,2604.4,2604.3,3.8398]
[1723855770267,0.00505703,2604.4,2604.3,12.3992753]
[1723855770569,0.00505703,2604.4,2604.3,14.4035605]
[1723855770769,0.00505703,2604.4,2604.3,10.5637605]
[1723855770965,0.00505703,2604.4,2604.3,12.3992753]
[1723855771273,0.00505703,2604.4,2604.3,16.6895908]
[1723855771467,0.00505703,2604.4,2604.3,16.68950824]
[1723855772513,0.00505703,2604.4,2604.3,13.35038]
[1723855772809,0.00505703,2604.4,2604.3,3.38398]
[1723855773027,0.00505703,2604.4,2603.9,5.00377038]
[1723855773304,0.00505703,2604.4,2603.9,3.0]
[1723855773462,0.00505703,2604.4,2603.9,3.84037]
[1723855773662,0.00505703,2604.4,2603.7,3.84063]
[1723855773663,0.00505703,2604.4,2604.0,3.0]
[1723855774171,0.00505703,2604.4,2603.9,3.84038]
[1723855774370,0.00505703,2604.4,2604.0,3.0]
[1723855775711,0.00505703,2604.4,2604.0,6.84021]
[1723855776054,0.00505703,2604.4,2604.1,0.684021]
[1723855776612,0.00505703,2604.4,2604.2,3.83983]
[1723855776912,0.00505703,2604.4,2604.3,3.0]